bitfinex/quotes_SOLUSD_20260224
["timestamp","ask_amount","ask_price","bid_price","bid_amount"]
[1771969104910,12.72950136,78.558,78.531,2.35070778]
[1771969105115,12.72950136,78.558,78.48,8.70041516]
[1771969105116,0.88315234,78.579,78.52,5.00658114]
[1771969105308,0.86587441,78.549,78.526,2.2510445]
[1771969105512,0.86587441,78.549,78.481,248.46778197]
[1771969105513,0.86587441,78.549,78.521,2.2510445]
[1771969106221,0.85738399,78.539,78.511,2.2510445]
[1771969106422,5.00658114,78.52,78.501,2.2510445]
[1771969106620,0.85738399,78.519,78.496,2.2510445]
[1771969107519,0.85738399,78.519,78.498,2.2510445]
[1771969107827,0.8489911,78.525,78.498,2.2510445]
[1771969108213,13.57565462,78.524,78.498,2.2510445]
[1771969108617,0.84069461,78.524,78.498,2.2510445]
[1771969110029,0.84069461,78.524,78.499,12.73901578]
[1771969110215,0.84069461,78.524,78.5,2.2510445]
[1771969111213,0.81637252,78.519,78.5,2.2510445]
[1771969112619,0.81637252,78.519,78.501,14.98973572]
[1771969113014,5.00658114,78.52,78.502,2.2510445]
[1771969114734,0.79287894,78.519,78.454,2.2510445]
[1771969114916,0.79287894,78.509,78.481,2.2510445]
[1771969115422,0.78522695,78.515,78.481,2.2510445]
[1771969116229,5.00658114,78.51,78.481,2.2510445]
[1771969116934,0.78522695,78.515,78.481,2.2510445]
[1771969118336,13.52180282,78.515,78.482,12.74177518]
[1771969118517,13.49937017,78.515,78.483,2.2510445]
[1771969118718,0.7627943,78.514,78.483,2.2510445]
[1771969119926,3.69383402,78.539,78.491,2.2510445]
[1771969120118,0.75548786,78.537,78.501,2.2510445]
[1771969120531,5.00658114,78.53,78.501,2.2510445]
[1771969120733,5.75484648,78.53,78.501,2.2510445]
[1771969121044,0.74826534,78.519,78.501,2.2510445]
[1771969121428,0.74112579,78.525,78.501,2.2510445]
[1771969122633,12.73496001,78.524,78.501,12.73867487]
[1771969122832,12.73496001,78.524,78.502,2.2510445]
[1771969124242,0.72019538,78.524,78.502,2.2510445]
[1771969126038,12.73512219,78.523,78.502,2.2510445]
[1771969129121,0.68688372,78.522,78.502,2.2510445]
[1771969131040,13.41589575,78.521,78.502,2.2510445]
[1771969131827,0.67408856,78.52,78.502,2.2510445]
[1771969132845,5.66478343,78.52,78.502,2.2510445]
[1771969133046,0.65544169,78.519,78.502,2.2510445]
[1771969133224,0.65544169,78.519,78.49,15.0825434]
[1771969133225,0.65544169,78.509,78.49,15.0825434]
[1771969134450,0.65544169,78.509,78.49,2.34208924]
[1771969134839,0.6493683,78.507,78.485,2.34208924]
[1771969137233,0.6493683,78.507,78.487,2.27304423]
[1771969137835,13.38724252,78.507,78.487,2.27304423]
[1771969138060,0.62576437,78.506,78.487,2.27304423]
[1771969138750,0.62576437,78.506,78.476,31.85675803]
[1771969138751,0.92003186,78.499,78.46,4.99069487]
[1771969140750,0.9087636,78.497,78.462,2.27304423]
[1771969142057,4.99069487,78.49,78.462,2.27304423]
[1771969142763,0.89775271,78.498,78.464,2.27304423]
[1771969142965,12.73901578,78.499,78.471,2.27304423]
[1771969143251,13.63135772,78.499,78.471,2.27304423]
[1771969143455,12.73901578,78.499,78.471,2.27304423]
[1771969143688,0.89234194,78.498,78.471,2.27304423]
[1771969144951,13.62625216,78.497,78.471,2.27304423]
[1771969146350,12.73966494,78.495,78.471,2.27304423]
[1771969148352,0.86580788,78.494,78.471,2.27304423]
[1771969148664,0.86580788,78.489,78.466,2.27304423]
[1771969148855,0.86580788,78.479,78.453,2.27304423]
[1771969150257,4.99069487,78.47,78.453,2.27304423]
[1771969152347,12.74388612,78.469,78.453,2.27304423]
[1771969153550,0.84076307,78.468,78.448,2.27304423]
[1771969154761,0.83592538,78.459,78.429,2.27304423]
[1771969155266,4.99069487,78.45,78.43,2.27304423]
[1771969155462,0.83114325,78.452,78.43,2.27304423]
[1771969155771,0.83114325,78.452,78.432,2.27304423]
[1771969157368,0.82174314,78.457,78.432,2.27304423]
[1771969157571,0.82174314,78.457,78.433,12.74973544]
[1771969157754,0.82174314,78.457,78.434,2.27304423]
[1771969160166,13.56766107,78.457,78.435,12.74941033]
[1771969160366,13.56766107,78.457,78.436,2.27304423]
[1771969160568,0.82174314,78.457,78.436,2.27304423]
[1771969162069,17.73606894,78.46,78.438,2.27304423]
[1771969162467,0.79917149,78.459,78.438,2.27304423]
[1771969168379,0.76566215,78.457,78.438,2.27304423]
[1771969168677,12.74567284,78.458,78.426,2.17939496]
[1771969168678,0.76566215,78.449,78.426,2.17939496]
[1771969170459,0.76566215,78.449,78.427,12.75071085]
[1771969170772,0.76566215,78.449,78.427,2.17939496]
[1771969171282,12.74593688,78.457,78.427,2.17939496]
[1771969172882,12.74593688,78.457,78.428,12.75054827]
[1771969173066,12.74593688,78.457,78.429,2.17939496]
[1771969175577,13.4847141,78.457,78.431,2.17939496]
[1771969176883,12.74616021,78.455,78.431,2.17939496]
[1771969177585,0.73148676,78.454,78.431,2.17939496]
[1771969178865,0.72790421,78.452,78.431,2.17939496]
[1771969181288,0.71740157,78.449,78.431,2.17939496]
[1771969182685,0.71740157,78.449,78.432,2.17939496]
[1771969187505,4.99069487,78.45,78.432,2.17939496]
[1771969187793,63.71474046,78.475,78.42,5.19069487]
[1771969187794,0.69745739,78.469,78.434,2.17939496]
[1771969188476,0.69426571,78.466,78.434,2.17939496]
[1771969188698,63.70277953,78.49,78.433,44.62407404]
[1771969188699,0.69426571,78.479,78.441,2.17939496]
[1771969188879,0.69426571,78.477,78.441,2.17939496]
[1771969189088,5.68496058,78.47,78.441,2.17939496]
[1771969189289,0.69111068,78.469,78.441,2.17939496]
[1771969191594,0.68490892,78.464,78.441,2.17939496]
[1771969192594,0.68490892,78.464,78.443,2.17939496]
[1771969193285,4.99868314,78.46,78.443,2.17939496]
[1771969193593,0.68490892,78.464,78.443,2.17939496]
[1771969194484,12.74486063,78.463,78.443,2.17939496]
[1771969195093,0.67292712,78.462,78.443,2.17939496]
[1771969198074,0.6614864,78.46,78.443,2.17939496]
[1771969198406,0.6614864,78.459,78.438,2.12790457]
[1771969198788,0.6614864,78.449,78.428,2.12790457]
[1771969198994,0.6614864,78.449,78.421,2.12790457]
[1771969200603,0.65596126,78.448,78.422,2.12790457]
[1771969201480,12.74720778,78.449,78.423,12.7513612]
[1771969201680,4.99868314,78.45,78.424,2.12790457]
[1771969201887,12.74664147,78.453,78.424,2.12790457]
[1771969202201,4.99868314,78.47,78.431,2.12790457]
[1771969203081,12.74404852,78.468,78.432,12.749898]
[1771969203288,12.74404852,78.468,78.433,2.12790457]
[1771969205004,12.74404852,78.468,78.435,2.12790457]
[1771969206099,0.64269423,78.467,78.435,2.12790457]
[1771969206293,0.64013155,78.459,78.435,2.12790457]
[1771969208313,0.64013155,78.459,78.436,12.74924779]
[1771969208619,0.64013155,78.459,78.437,2.12790457]
[1771969210511,31.8564071,78.478,78.441,2.12790457]
[1771969210713,0.63017182,78.476,78.441,2.12790457]
[1771969217418,0.61381229,78.474,78.443,2.12790457]
[1771969218329,0.61158135,78.469,78.443,2.12790457]
[1771969219805,12.74404852,78.468,78.443,2.12790457]
[1771969220011,0.60937603,78.467,78.443,2.12790457]
[1771969220533,0.60719605,78.467,78.443,2.12790457]
[1771969223112,0.6029109,78.465,78.443,2.12790457]
[1771969225725,13.33731956,78.464,78.443,2.12790457]
[1771969226033,4.99868314,78.46,78.443,2.12790457]
[1771969226261,0.59262136,78.459,78.431,2.03179945]
[1771969231535,0.59262136,78.459,78.433,2.03179945]
[1771969231536,12.74567284,78.458,78.433,2.03179945]
[1771969233611,12.74388612,78.469,78.441,2.03179945]
[1771969233841,13.32123187,78.469,78.441,2.03179945]
[1771969234018,0.57734575,78.468,78.441,2.03179945]
[1771969237325,12.74421094,78.467,78.441,14.78010261]
[1771969237514,12.74421094,78.467,78.442,2.03179945]
[1771969239641,13.3094873,78.477,78.444,2.03179945]
[1771969239843,4.99868314,78.47,78.444,2.03179945]
[1771969241344,5.56210178,78.47,78.446,2.03179945]
[1771969242145,0.56341864,78.468,78.446,2.03179945]
[1771969242842,12.74388612,78.469,78.446,2.03179945]
[1771969242843,5.56044966,78.46,78.446,2.03179945]
[1771969243216,4.99868314,78.46,78.446,2.03179945]
[1771969243419,0.56013337,78.465,78.446,2.03179945]
[1771969249040,12.7446982,78.464,78.446,2.03179945]
[1771969249343,13.29541917,78.464,78.446,2.03179945]
[1771969252047,0.54772572,78.473,78.448,2.03179945]
[1771969252245,5.54640886,78.47,78.448,2.03179945]
[1771969252445,0.54625385,78.469,78.448,2.03179945]
[1771969252832,12.7431362,78.474,78.448,2.03179945]
[1771969253141,13.28939005,78.474,78.448,2.03179945]
[1771969253346,0.54479888,78.473,78.448,2.03179945]
[1771969254151,4.9976436,78.47,78.449,12.74713508]
[1771969254353,0.54479888,78.469,78.45,2.03179945]
[1771969256440,0.53914422,78.468,78.446,1.94489057]
[1771969257658,0.53914422,78.468,78.44,12.74858036]
[1771969257956,0.53914422,78.468,78.43,4.9976436]
[1771969257957,2.02499529,78.459,78.429,12.75038569]
[1771969258136,2.02499529,78.459,78.429,44.62634993]
[1771969259747,2.02499529,78.459,78.431,12.75006056]
[1771969259954,2.02499529,78.459,78.432,1.94489057]
[1771969262054,4.9976436,78.47,78.434,1.94489057]
[1771969262253,2.02499529,78.479,78.441,1.94489057]
[1771969263449,2.02499529,78.479,78.433,44.62407404]
[1771969263450,2.02499529,78.477,78.443,1.94489057]
[1771969267539,4.9976436,78.48,78.426,1.94489057]
[1771969267540,2.02499529,78.459,78.426,1.94489057]
[1771969269149,2.02499529,78.469,78.44,4.9976436]
[1771969269461,2.02499529,78.469,78.441,1.94489057]
[1771969271045,2.02499529,78.475,78.443,1.94489057]
[1771969273052,2.02499529,78.469,78.445,1.94489057]
[1771969278368,2.02499529,78.469,78.447,1.94489057]
[1771969280566,2.02499529,78.469,78.448,12.74729757]
[1771969280763,2.02499529,78.469,78.449,1.94489057]
[1771969283270,4.9976436,78.46,78.42,5.1976436]
[1771969283469,2.02499529,78.459,78.42,0.2]
[1771969283657,4.9976436,78.45,78.42,0.2]
[1771969283975,2.02499529,78.449,78.42,0.2]
[1771969284358,2.02499529,78.449,78.422,12.75151205]
[1771969285376,2.02499529,78.449,78.423,1.97268663]
[1771969286477,2.02499529,78.449,78.425,1.97268663]
[1771969288077,2.02499529,78.449,78.427,1.97268663]
[1771969288782,4.9976436,78.46,78.431,1.97268663]
[1771969288981,2.10851303,78.459,78.431,1.97268663]
[1771969296486,2.10851303,78.457,78.431,1.97268663]
[1771969297565,4.9976436,78.46,78.433,1.97268663]
[1771969297762,2.10851303,78.476,78.441,1.97268663]
[1771969299686,4.9976436,78.48,78.443,1.97268663]
[1771969299687,2.10851303,78.474,78.443,1.97268663]
[1771969302200,2.10851303,78.472,78.445,1.97268663]
[1771969304791,2.10851303,78.47,78.447,1.97268663]
[1771969310574,2.10851303,78.47,78.446,12.74762256]
[1771969310575,2.10851303,78.468,78.449,1.97268663]
[1771969312195,2.10851303,78.468,78.442,1.97268663]
[1771969313695,2.10851303,78.468,78.444,1.97268663]
[1771969315399,2.10851303,78.468,78.446,2.05264706]
[1771969322399,2.10851303,78.468,78.448,2.05264706]
[1771969330506,2.10851303,78.468,78.449,12.74713508]
[1771969330712,2.10851303,78.468,78.45,2.05264706]
[1771969332216,1.94799135,78.476,78.45,2.05264706]
[1771969332915,12.74291175,78.475,78.45,2.05264706]
[1771969333109,1.94799135,78.474,78.45,2.05264706]
[1771969334110,1.94799135,78.472,78.45,2.05264706]
[1771969339910,1.94799135,78.47,78.45,2.05264706]
[1771969344022,1.94799135,78.47,78.451,2.05264706]
[1771969352827,12.74388612,78.469,78.451,2.05264706]
[1771969353033,14.79921964,78.469,78.451,2.05264706]
[1771969353427,2.05533352,78.468,78.451,2.05264706]
[1771969353728,2.05533352,78.466,78.441,2.02648386]
[1771969354412,2.05533352,78.466,78.442,2.02648386]
[1771969357426,2.05533352,78.466,78.444,2.02648386]
[1771969359426,2.05533352,78.466,78.446,2.02648386]
[1771969360034,2.05533352,78.466,78.445,12.74778507]
[1771969360035,63.6685545,78.532,78.461,2.02648386]
[1771969360331,166.6,78.554,78.445,44.61724775]
[1771969360332,4.99691628,78.54,78.501,2.02648386]
[1771969360524,4.99691628,78.53,78.493,2.02648386]
[1771969362141,2.05533352,78.527,78.495,2.02648386]
[1771969365031,2.05533352,78.525,78.497,2.02648386]
[1771969365629,2.05533352,78.525,78.501,2.02648386]
[1771969367340,2.05533352,78.523,78.501,2.02648386]
[1771969369848,2.05533352,78.521,78.501,2.02648386]
[1771969371934,2.05533352,78.519,78.501,2.02648386]
[1771969377755,2.05533352,78.519,78.503,1.99318601]
[1771969378651,14.5986693,78.518,78.503,1.99318601]
[1771969381938,4.98957859,78.51,78.475,1.99318601]
[1771969382137,1.86273614,78.509,78.475,1.99318601]
[1771969382337,1.86273614,78.509,78.471,1.99318601]
[1771969383457,1.86273614,78.507,78.471,1.99318601]
[1771969383832,1.86273614,78.499,78.473,1.99318601]
[1771969386157,1.86273614,78.497,78.471,1.99318601]
[1771969388557,1.86273614,78.495,78.471,1.99318601]
[1771969390664,1.86273614,78.493,78.471,1.99318601]
[1771969395552,1.86273614,78.491,78.471,1.99318601]
[1771969395948,4.98957859,78.49,78.451,1.99318601]
[1771969396154,1.86273614,78.479,78.451,1.99318601]
[1771969397559,12.74242462,78.478,78.451,1.99318601]
[1771969397762,1.86273614,78.477,78.451,1.99318601]
[1771969400172,14.60548551,78.476,78.451,1.99318601]
[1771969400765,12.74274937,78.476,78.451,1.99318601]
[1771969401074,1.86273614,78.475,78.451,1.99318601]
[1771969409377,1.80466088,78.478,78.453,1.79773535]
[1771969411085,4.98957859,78.48,78.452,12.74664763]
[1771969411086,1.80466088,78.505,78.461,1.79773535]
[1771969411265,1.80466088,78.499,78.461,1.79773535]
[1771969411466,1.80466088,78.497,78.461,1.79773535]
[1771969413275,1.80466088,78.489,78.461,1.79773535]
[1771969413478,1.80466088,78.487,78.461,1.79773535]
[1771969418891,1.80466088,78.485,78.461,1.79773535]
[1771969424685,12.74145048,78.484,78.461,1.79773535]
[1771969424891,1.80466088,78.483,78.461,1.79773535]
[1771969430582,12.74177518,78.482,78.461,1.79773535]
[1771969430782,1.80466088,78.481,78.461,1.79773535]
[1771969435892,1.77661996,78.479,78.457,1.77731443]
[1771969440619,1.77661996,78.469,78.441,1.77731443]
[1771969442617,1.77661996,78.467,78.442,1.77731443]
[1771969443124,12.74404852,78.468,78.442,1.77731443]
[1771969447020,1.77661996,78.47,78.444,1.77731443]
[1771969456331,12.74388612,78.469,78.446,1.77731443]
[1771969456710,14.52050608,78.469,78.446,1.77731443]
[1771969457929,1.77661996,78.468,78.446,1.77731443]
[1771969458955,12.74421094,78.467,78.446,1.77731443]
[1771969459133,1.77661996,78.466,78.446,1.77731443]
[1771969459317,1.77661996,78.466,78.448,1.77731443]
[1771969467041,1.74765779,78.464,78.448,1.77731443]
[1771969469738,4.9964589,78.46,78.432,1.77367241]
[1771969469923,1.74765779,78.459,78.432,1.77367241]
[1771969471628,4.9964589,78.46,78.42,5.1964589]
[1771969471629,1.74765779,78.457,78.422,1.77367241]
[1771969471835,1.74765779,78.439,78.42,0.2]
[1771969472032,1.74765779,78.439,78.42,1.97367241]
[1771969473527,12.74892271,78.438,78.42,1.97367241]
[1771969474031,12.74845919,78.441,78.421,1.77367241]
[1771969474535,14.49611698,78.441,78.421,1.77367241]
[1771969475350,1.74765779,78.44,78.421,1.77367241]
[1771969475760,14.49641797,78.439,78.421,1.77367241]
[1771969476248,1.74765779,78.438,78.421,1.77367241]
[1771969478033,1.74765779,78.436,78.421,1.77367241]
[1771969478433,1.74765779,78.436,78.42,0.2]
[1771969481242,1.74765779,78.434,78.42,0.2]
[1771969483054,1.55947496,78.429,78.411,1.77367241]
[1771969483463,1.55947496,78.429,78.41,0.2]
[1771969483758,1.55947496,78.429,78.41,1.97367241]
[1771969488662,1.55947496,78.429,78.412,1.77367241]
[1771969490546,3.69383402,78.459,78.41,0.2]
[1771969490547,1.54478823,78.443,78.414,1.77367241]
[1771969490941,44.61895412,78.442,78.414,1.77367241]
[1771969491142,1.54478823,78.441,78.414,1.77367241]
[1771969492071,1.54304135,78.439,78.414,1.77367241]
[1771969495573,12.74892271,78.438,78.414,1.77367241]
[1771969495784,14.28352606,78.438,78.414,1.77367241]
[1771969496370,4.9964589,78.43,78.414,1.77367241]
[1771969496753,1.53297345,78.433,78.414,1.77367241]
[1771969497966,1.53136228,78.431,78.414,1.77367241]
[1771969500250,1.52819523,78.433,78.414,1.77367241]
[1771969501374,1.52510052,78.429,78.41,0.2]
[1771969502069,1.52510052,78.429,78.41,1.85338615]
[1771969503567,5.00196304,78.45,78.412,1.65338615]
[1771969503873,1.5220765,78.449,78.412,1.65338615]
[1771969506467,1.51766947,78.447,78.414,1.65338615]
[1771969509261,5.00196304,78.43,78.41,0.2]
[1771969509499,1.51481517,78.429,78.41,0.2]
[1771969510888,1.51202606,78.427,78.411,1.65338615]
[1771969511074,1.51202606,78.443,78.411,1.65338615]
[1771969512583,12.74876018,78.439,78.411,1.65338615]
[1771969513791,12.74801072,78.444,78.421,1.65338615]
[1771969514001,12.74746006,78.447,78.421,1.65338615]
[1771969517575,12.74746006,78.447,78.423,1.65338615]
[1771969521382,5.00196304,78.45,78.425,1.65338615]
[1771969521577,17.74902591,78.45,78.425,1.65338615]
[1771969521781,12.74551039,78.459,78.425,1.65338615]
[1771969521977,1.49778642,78.458,78.425,1.65338615]
[1771969523305,5.00196304,78.45,78.425,1.65338615]
[1771969523689,1.49778642,78.458,78.427,1.65338615]
[1771969523899,12.74551039,78.459,78.43,5.00196304]
[1771969524092,12.74388612,78.469,78.431,1.65338615]
[1771969524587,5.00196304,78.48,78.441,1.67427495]
[1771969524791,1.49304089,78.479,78.441,1.67427495]
[1771969525413,5.00196304,78.47,78.441,1.67427495]
[1771969526097,5.00196304,78.47,78.443,1.61815772]
[1771969526309,1.49304089,78.479,78.443,1.61815772]
[1771969526491,5.00196304,78.48,78.443,1.61815772]
[1771969526690,12.74226226,78.479,78.443,1.61815772]
[1771969526985,12.74226226,78.479,78.45,5.00196304]
[1771969527197,12.74226226,78.479,78.451,1.61815772]
[1771969528713,12.74096347,78.487,78.453,1.61815772]
[1771969529024,14.22837268,78.487,78.453,1.61815772]
[1771969529234,5.00196304,78.48,78.453,1.61815772]
[1771969529398,6.48828442,78.48,78.453,1.61815772]
[1771969529590,1.48632138,78.479,78.453,1.61815772]
[1771969530911,12.74242462,78.478,78.455,1.61815772]
[1771969532317,14.22555692,78.478,78.455,1.61815772]
[1771969532709,1.4831323,78.477,78.455,1.61815772]
[1771969535011,1.4831323,78.477,78.457,1.61815772]
[1771969535900,1.48005185,78.481,78.457,1.61815772]
[1771969536204,1.48005185,78.479,78.457,1.61815772]
[1771969537823,12.74242462,78.478,78.457,1.61815772]
[1771969540209,12.74242462,78.478,78.459,1.61815772]
[1771969540926,14.2175738,78.478,78.459,1.61815772]
[1771969542428,1.47326605,78.488,78.459,1.61815772]
[1771969542633,1.47326605,78.488,78.46,1.61815772]
[1771969543010,1.47326605,78.488,78.461,1.61815772]
[1771969543211,1.47326605,78.504,78.471,1.61815772]
[1771969544321,1.47234067,78.499,78.471,1.61815772]
[1771969547737,1.46874424,78.497,78.471,1.61815772]
[1771969548944,1.4678708,78.509,78.472,12.74339891]
[1771969549115,1.4678708,78.507,78.481,1.61815772]
[1771969549927,1.46700739,78.505,78.483,1.61815772]
[1771969552236,1.46700739,78.505,78.485,1.61815772]
[1771969553142,12.7378799,78.506,78.485,1.61815772]
[1771969556421,1.46044774,78.506,78.485,1.61815772]
[1771969557727,1.45966959,78.499,78.464,1.73777713]
[1771969558735,4.99235806,78.5,78.465,1.73777713]
[1771969558736,1.45890039,78.497,78.465,1.73777713]
[1771969558937,1.45890039,78.497,78.471,1.73777713]
[1771969562441,1.45591089,78.495,78.473,1.73777713]
[1771969565554,1.45591089,78.495,78.475,1.73777713]
[1771969574842,1.45591089,78.495,78.477,1.73777713]
[1771969575456,1.44709626,78.502,78.477,1.73777713]
[1771969575669,12.73950264,78.64,78.487,1.73777713]
[1771969575670,12.73414916,78.529,78.487,1.73777713]
[1771969575840,1.44709626,78.509,78.487,1.73777713]
[1771969577560,1.44709626,78.509,78.489,1.73777713]
[1771969580946,1.44404325,78.501,78.489,1.73777713]
[1771969581344,1.44404325,78.501,78.47,4.99235806]
[1771969581345,1.44345352,78.499,78.47,1.73777713]
[1771969581656,12.7375554,78.508,78.47,1.73777713]
[1771969581657,1.44345352,78.489,78.47,1.73777713]
[1771969583065,1.44345352,78.489,78.472,1.73777713]
[1771969583468,1.44229432,78.487,78.467,1.73777713]
[1771969583766,1.44229432,78.487,78.45,4.99235806]
[1771969583767,1.44229432,78.487,78.452,1.73777713]
[1771969583973,4.99235806,78.48,78.452,1.73777713]
[1771969584268,1.44229432,78.479,78.452,1.73777713]
[1771969584468,1.44116159,78.469,78.452,1.73777713]
[1771969586357,1.44005473,78.459,78.432,1.75343731]
[1771969586587,1.43951081,78.449,78.432,1.75343731]
[1771969586764,4.99235806,78.45,78.432,1.75343731]
[1771969587159,1.43951081,78.459,78.432,1.75343731]
[1771969589568,1.43951081,78.459,78.431,12.75006056]
[1771969589569,4.99235806,78.45,78.434,1.75343731]
[1771969590366,4.99235806,78.46,78.434,1.75343731]
[1771969591059,12.74551039,78.459,78.434,1.75343731]
[1771969591262,1.43739692,78.458,78.434,1.75343731]
[1771969591772,4.99235806,78.45,78.436,1.75343731]
[1771969591969,1.43688354,78.461,78.436,1.75343731]
[1771969592275,6.4292416,78.46,78.436,1.75343731]
[1771969593854,1.43587439,78.449,78.431,1.75343731]
[1771969594094,12.74489652,78.463,78.431,1.75343731]
[1771969594256,4.99235806,78.46,78.431,1.75343731]
[1771969595876,17.73783464,78.46,78.432,1.75343731]
[1771969597776,4.99235806,78.47,78.432,1.75343731]
[1771969597967,1.43392472,78.467,78.434,1.75343731]
[1771969598160,4.99235806,78.46,78.434,1.75343731]
[1771969600080,4.99235806,78.46,78.436,1.75343731]
[1771969600586,1.43392472,78.467,78.436,1.75343731]
[1771969602477,14.17598431,78.466,78.437,12.74908525]
[1771969602668,4.99235806,78.46,78.438,1.75343731]
[1771969602865,102.0,78.599,78.438,1.75343731]
[1771969603070,1.43161096,78.506,78.471,1.75343731]
[1771969603465,4.99235806,78.5,78.471,1.75343731]
[1771969603680,6.4235221,78.5,78.471,1.75343731]
[1771969605082,6.4235221,78.5,78.472,12.74339891]
[1771969605275,1.43116404,78.5,78.473,1.75343731]
[1771969605771,1.43028552,78.499,78.473,1.75343731]
[1771969607685,1.42942707,78.497,78.473,1.75343731]
[1771969609113,1.42942707,78.497,78.475,1.75343731]
[1771969609887,1.42858823,78.479,78.452,1.75343731]
[1771969611394,1.42817602,78.489,78.452,1.75343731]
[1771969612273,1.42776855,78.487,78.454,1.75343731]
[1771969613894,1.42696759,78.489,78.461,1.75343731]
[1771969615192,1.42618492,78.487,78.463,1.60922351]
[1771969619303,1.42618492,78.487,78.465,1.60922351]
[1771969619992,4.99486517,78.48,78.465,1.60922351]
[1771969620200,4.99486517,78.48,78.455,31.86540054]
[1771969620201,1.42430557,78.479,78.455,1.60922351]
[1771969620507,1.42430557,78.469,78.445,1.60922351]
[1771969623986,1.42430557,78.469,78.444,12.74794758]
[1771969623987,1.42287832,78.467,78.447,1.60922351]
[1771969624687,12.74079372,78.489,78.451,1.60922351]
[1771969624887,12.74079372,78.489,78.461,1.60922351]
[1771969626212,12.74079372,78.489,78.463,1.60922351]
[1771969628607,1.42118456,78.488,78.463,1.60922351]
[1771969629703,1.42118456,78.488,78.465,1.60922351]
[1771969630412,4.99486517,78.49,78.465,1.60922351]
[1771969630706,1.42053398,78.489,78.467,1.60922351]
[1771969631006,1.42053398,78.487,78.467,1.60922351]
[1771969633204,12.7411258,78.486,78.467,1.60922351]
[1771969633402,14.16071166,78.486,78.467,1.60922351]
[1771969633908,1.41958586,78.485,78.467,1.60922351]
[1771969634120,1.41958586,78.479,78.451,1.60922351]
[1771969644227,1.41958586,78.479,78.44,4.99486517]
[1771969644228,4.99486517,78.51,78.47,4.99486517]
[1771969644517,1.41610553,78.499,78.471,1.60922351]
[1771969644722,1.41610553,78.499,78.46,4.99486517]
[1771969645602,1.59589757,78.497,78.461,44.60814926]
[1771969646634,1.59589757,78.497,78.462,1.58967423]
[1771969648526,1.59589757,78.497,78.464,1.58967423]
[1771969649303,1.59589757,78.495,78.464,1.58967423]
[1771969651320,1.59589757,78.495,78.44,4.99486517]
[1771969651321,1.59589757,78.469,78.437,12.74908525]
[1771969653206,1.59589757,78.467,78.44,1.58967423]
[1771969654828,1.59589757,78.459,78.439,12.74876018]
[1771969655007,1.59589757,78.449,78.422,1.58967423]
[1771969655213,1.59589757,78.447,78.423,14.34103543]
[1771969655908,4.99486517,78.44,78.423,14.34103543]
[1771969656107,1.59589757,78.439,78.423,14.34103543]
[1771969656308,1.59589757,78.439,78.418,1.58967423]
[1771969656522,1.59589757,78.439,78.411,1.58967423]
[1771969657538,1.59589757,78.437,78.412,1.58967423]
[1771969660720,1.59589757,78.437,78.414,1.58967423]
[1771969663216,63.72490145,78.463,78.41,0.2]
[1771969663217,50.94183708,78.521,78.431,1.58967423]
[1771969663427,1.59589757,78.469,78.441,1.58967423]
[1771969664416,1.59589757,78.469,78.443,1.58967423]
[1771969666232,3.69383402,78.499,78.442,12.7482726]
[1771969666233,1.59589757,78.479,78.444,1.58967423]
[1771969666532,1.59589757,78.487,78.453,1.58967423]
[1771969668225,1.59589757,78.487,78.455,1.58967423]
[1771969668926,1.59589757,78.479,78.455,1.58967423]
[1771969669229,4.99486517,78.47,78.454,10.33248244]
[1771969669432,6.59076274,78.47,78.454,10.33248244]
[1771969670344,1.59589757,78.469,78.443,31.87023297]
[1771969671241,1.59589757,78.469,78.444,0.76084667]
[1771969671945,1.59589757,78.469,78.446,0.75717438]
[1771969672844,1.59589757,78.469,78.445,44.61724775]
[1771969675649,1.59589757,78.469,78.445,32.6096371]
[1771969676734,1.59589757,78.469,78.445,45.35742217]
[1771969678125,1.65926785,78.468,78.445,13.48162435]
[1771969678846,1.65926785,78.468,78.446,0.73072618]
[1771969680046,1.65926785,78.466,78.441,13.47608395]
[1771969680629,1.65926785,78.466,78.442,0.72460684]
[1771969681251,1.65926785,78.464,78.442,0.72460684]
[1771969681851,1.65926785,78.464,78.444,0.72159978]
[1771969682555,1.65926785,78.469,78.444,0.72159978]
[1771969683748,1.65926785,78.469,78.44,4.99607108]
[1771969683749,14.40331637,78.468,78.446,0.71568888]
[1771969684450,1.65926785,78.467,78.446,0.71568888]
[1771969688662,4.99607108,78.48,78.41,0.2]
[1771969688663,1.65926785,78.459,78.41,0.2]
[1771969688865,1.65926785,78.439,78.411,0.70149557]
[1771969690060,1.65926785,78.459,78.421,0.69875397]
[1771969691247,1.65926785,78.457,78.423,0.69604385]
[1771969696347,1.65926785,78.457,78.431,0.68295313]
[1771969698359,12.74599775,78.456,78.432,12.749898]
[1771969698659,1.65926785,78.455,78.433,0.67545406]
[1771969703164,1.65926785,78.453,78.433,0.67545406]
[1771969703373,1.65926785,78.453,78.429,0.66585114]
[1771969707568,1.60461382,78.449,78.422,0.6500777]
[1771969707870,1.60461382,78.449,78.417,0.6500777]
[1771969709365,1.60461382,78.439,78.413,32.53035967]
[1771969710071,1.60461382,78.437,78.413,12.75298738]
[1771969710746,1.60461382,78.429,78.413,12.75298738]
[1771969722672,1.60461382,78.429,78.41,0.2]
[1771969722673,1.60461382,78.427,78.41,0.82028184]
[1771969722983,1.60461382,78.427,78.41,12.95334142]